[Event "*** Titled Tuesday Blitz"]
[Site "Chess.com"]
[Date "2020.05.12"]
[Round "8"]
[White "GeorgMeier"]
[Black "GjakanTati"]
[Result "1-0"]
[WhiteElo "3011"]
[BlackElo "2647"]
[TimeControl "180+1"]
[EndTime "11:31:36 PDT"]
[Termination "GeorgMeier won by resignation"]

1. Nf3 {[%clk 0:03:00.9]} 1... Nf6 {[%clk 0:02:59.5]} 2. g3 {[%clk 0:03:00.5]}
2... g6 {[%clk 0:02:58.3]} 3. Bg2 {[%clk 0:03:00.8]} 3... Bg7 {[%clk 0:02:58.6]}
4. d4 {[%clk 0:03:01.2]} 4... O-O {[%clk 0:02:58.7]} 5. O-O {[%clk 0:03:01.7]}
5... d5 {[%clk 0:02:58.8]} 6. c4 {[%clk 0:03:01.5]} 6... c6 {[%clk 0:02:58.5]}
7. cxd5 {[%clk 0:03:01.5]} 7... cxd5 {[%clk 0:02:59.4]} 8. Nc3 {[%clk
0:03:02.1]} 8... Ne4 {[%clk 0:02:59.3]} 9. Ne5 {[%clk 0:03:02.2]} 9... Nc6
{[%clk 0:02:56]} 10. Nxc6 {[%clk 0:03:00.5]} 10... bxc6 {[%clk 0:02:56.9]} 11.
Nxe4 {[%clk 0:02:59.9]} 11... dxe4 {[%clk 0:02:57.8]} 12. Bxe4 {[%clk
0:03:00.4]} 12... Bh3 {[%clk 0:02:36.1]} 13. Bg2 {[%clk 0:02:58.2]} 13... Bxg2
{[%clk 0:02:35.3]} 14. Kxg2 {[%clk 0:02:59.1]} 14... Qxd4 {[%clk 0:02:26.7]} 15.
Qxd4 {[%clk 0:02:53.8]} 15... Bxd4 {[%clk 0:02:27.6]} 16. Rb1 {[%clk 0:02:51]}
16... Rab8 {[%clk 0:02:22.8]} 17. b3 {[%clk 0:02:45]} 17... Rfd8 {[%clk
0:02:14.8]} 18. Bh6 {[%clk 0:02:38.3]} 18... c5 {[%clk 0:02:08.8]} 19. Rfc1
{[%clk 0:02:37.4]} 19... Rb6 {[%clk 0:01:56.5]} 20. Rc2 {[%clk 0:02:36.8]} 20...
a5 {[%clk 0:01:41.7]} 21. Bd2 {[%clk 0:02:22.6]} 21... Ra8 {[%clk 0:01:36.5]}
22. e3 {[%clk 0:02:22.5]} 22... Bf6 {[%clk 0:01:30.4]} 23. Rxc5 {[%clk
0:02:13.6]} 23... a4 {[%clk 0:01:30.1]} 24. b4 {[%clk 0:01:58.7]} 24... Rd8
{[%clk 0:01:27.5]} 25. Rc2 {[%clk 0:01:55.1]} 25... Rb5 {[%clk 0:01:22.4]} 26.
Kf1 {[%clk 0:01:54.3]} 26... Rh5 {[%clk 0:01:13.2]} 27. Kg2 {[%clk 0:01:50]}
27... Rb5 {[%clk 0:01:09]} 28. h4 {[%clk 0:01:49.7]} 28... e5 {[%clk 0:01:01.2]}
29. Kf1 {[%clk 0:01:47.1]} 29... e4 {[%clk 0:00:58.5]} 30. Ke2 {[%clk
0:01:46.9]} 30... Be7 {[%clk 0:00:58.3]} 31. Rc4 {[%clk 0:01:39.7]} 31... f5
{[%clk 0:00:51.3]} 32. Bc3 {[%clk 0:01:38.5]} 32... Rd3 {[%clk 0:00:48.4]} 33.
Rd1 {[%clk 0:01:30.6]} 33... Rxd1 {[%clk 0:00:33.3]} 34. Kxd1 {[%clk 0:01:30.8]}
34... Kf7 {[%clk 0:00:34.2]} 35. Kc2 {[%clk 0:01:31.2]} 35... Ke6 {[%clk
0:00:32.5]} 36. Kb2 {[%clk 0:01:31.4]} 36... Kd5 {[%clk 0:00:19.3]} 37. Rd4+
{[%clk 0:01:31.5]} 37... Ke6 {[%clk 0:00:19.5]} 38. Ka3 {[%clk 0:01:32]} 38...
Bf6 {[%clk 0:00:19.4]} 39. Rc4 {[%clk 0:01:32.2]} 39... Bxc3 {[%clk 0:00:19.8]}
40. Rxc3 {[%clk 0:01:33.1]} 40... Rd5 {[%clk 0:00:20.3]} 41. Rc2 {[%clk
0:01:33.1]} 1-0

[Event "*** Titled Tuesday Blitz"]
[Site "Chess.com"]
[Date "2020.05.12"]
[Round "8"]
[White "Zq1"]
[Black "slowdgehammer"]
[Result "1-0"]
[WhiteElo "2542"]
[BlackElo "2376"]
[TimeControl "180+1"]
[EndTime "11:31:39 PDT"]
[Termination "Zq1 won by resignation"]

1. d4 {[%clk 0:03:00.9]} 1... Nf6 {[%clk 0:02:59.2]} 2. c4 {[%clk 0:03:00.8]}
2... g6 {[%clk 0:02:59.1]} 3. Nc3 {[%clk 0:03:00.2]} 3... Bg7 {[%clk 0:02:59.7]}
4. e4 {[%clk 0:02:59.9]} 4... d6 {[%clk 0:03:00.4]} 5. Nf3 {[%clk 0:03:00.3]}
5... O-O {[%clk 0:03:00.7]} 6. Be2 {[%clk 0:03:00.6]} 6... e5 {[%clk 0:03:01.1]}
7. O-O {[%clk 0:02:59.7]} 7... Nc6 {[%clk 0:03:01.1]} 8. d5 {[%clk 0:02:59.5]}
8... Ne7 {[%clk 0:03:01.2]} 9. Ne1 {[%clk 0:02:59.5]} 9... Nd7 {[%clk
0:02:44.8]} 10. Be3 {[%clk 0:02:56.7]} 10... f5 {[%clk 0:02:41.8]} 11. f3 {[%clk
0:02:53]} 11... f4 {[%clk 0:02:35.3]} 12. Bf2 {[%clk 0:02:52.6]} 12... g5 {[%clk
0:02:35.4]} 13. Nb5 {[%clk 0:02:51.6]} 13... b6 {[%clk 0:02:29.1]} 14. b4 {[%clk
0:02:50.7]} 14... a6 {[%clk 0:02:21.3]} 15. Nc3 {[%clk 0:02:50.3]} 15... Ng6
{[%clk 0:02:21.5]} 16. Nd3 {[%clk 0:02:48.2]} 16... h5 {[%clk 0:02:18.6]} 17. c5
{[%clk 0:02:42.9]} 17... bxc5 {[%clk 0:02:18.4]} 18. bxc5 {[%clk 0:02:42.5]}
18... Nf6 {[%clk 0:02:19.3]} 19. cxd6 {[%clk 0:02:38.2]} 19... cxd6 {[%clk
0:02:19.3]} 20. Na4 {[%clk 0:02:36.9]} 20... g4 {[%clk 0:02:18.9]} 21. Nb6
{[%clk 0:02:33.7]} 21... Rb8 {[%clk 0:02:11.8]} 22. Nxc8 {[%clk 0:02:32.5]}
22... Qxc8 {[%clk 0:02:10]} 23. Rc1 {[%clk 0:02:25]} 23... Qd7 {[%clk 0:02:10]}
24. Rc6 {[%clk 0:02:16.2]} 24... g3 {[%clk 0:01:48.9]} 25. hxg3 {[%clk
0:02:01.2]} 25... fxg3 {[%clk 0:01:49.8]} 26. Bxg3 {[%clk 0:02:01.5]} 26... h4
{[%clk 0:01:49.5]} 27. Bh2 {[%clk 0:02:00.8]} 27... Nh5 {[%clk 0:01:48.5]} 28.
f4 {[%clk 0:01:58.8]} 28... Nhxf4 {[%clk 0:01:41.4]} 29. Bg4 {[%clk 0:01:53.3]}
29... Qa7+ {[%clk 0:01:30.6]} 30. Kh1 {[%clk 0:01:46.9]} 30... Nxd3 {[%clk
0:01:21.3]} 31. Be6+ {[%clk 0:01:36.1]} 31... Kh7 {[%clk 0:01:19.7]} 32. Qxd3
{[%clk 0:01:24.1]} 32... Qd4 {[%clk 0:01:07.1]} 33. Qxd4 {[%clk 0:01:14.2]}
33... exd4 {[%clk 0:01:04]} 34. Bf5 {[%clk 0:01:03.8]} 34... d3 {[%clk
0:00:42.1]} 35. Rxd6 {[%clk 0:01:01.4]} 35... Rf6 {[%clk 0:00:31.1]} 36. Rxf6
{[%clk 0:01:00.9]} 36... Bxf6 {[%clk 0:00:31.3]} 37. Bxb8 {[%clk 0:01:00.4]} 1-0

[Event "*** Titled Tuesday Blitz"]
[Site "Chess.com"]
[Date "2020.05.12"]
[Round "8"]
[White "Niclox"]
[Black "Gordima"]
[Result "1-0"]
[WhiteElo "2619"]
[BlackElo "2753"]
[TimeControl "180+1"]
[EndTime "11:31:43 PDT"]
[Termination "Niclox won by checkmate"]

1. e4 {[%clk 0:03:00.9]} 1... e5 {[%clk 0:02:59.7]} 2. Qh5 {[%clk 0:02:59.9]}
2... Nc6 {[%clk 0:02:57.2]} 3. Bc4 {[%clk 0:02:58.9]} 3... Qf6 {[%clk
0:02:57.5]} 4. Nc3 {[%clk 0:02:58.2]} 4... Qg6 {[%clk 0:02:48.1]} 5. Qxg6 {[%clk
0:02:52.7]} 5... hxg6 {[%clk 0:02:48]} 6. Nb5 {[%clk 0:02:53.6]} 6... Kd8 {[%clk
0:02:46.8]} 7. Bxf7 {[%clk 0:02:51.4]} 7... Nf6 {[%clk 0:02:21.3]} 8. d3 {[%clk
0:02:37.6]} 8... a6 {[%clk 0:02:19.1]} 9. Nc3 {[%clk 0:02:36.4]} 9... Nd4 {[%clk
0:02:19.5]} 10. Bb3 {[%clk 0:02:34.2]} 10... Bc5 {[%clk 0:02:11.1]} 11. Nge2
{[%clk 0:02:31.8]} 11... Nxb3 {[%clk 0:02:01.9]} 12. axb3 {[%clk 0:02:32.7]}
12... d6 {[%clk 0:01:59.1]} 13. h3 {[%clk 0:02:29.6]} 13... Be6 {[%clk
0:01:56.5]} 14. Be3 {[%clk 0:02:25.4]} 14... Bxe3 {[%clk 0:01:56.2]} 15. fxe3
{[%clk 0:02:26.3]} 15... g5 {[%clk 0:01:55.3]} 16. Kd2 {[%clk 0:02:23.9]} 16...
Ke7 {[%clk 0:01:54.8]} 17. Ng3 {[%clk 0:02:19.7]} 17... Rh4 {[%clk 0:01:53.6]}
18. Raf1 {[%clk 0:02:15]} 18... Rah8 {[%clk 0:01:44]} 19. Nf5+ {[%clk
0:02:13.6]} 19... Bxf5 {[%clk 0:01:44.2]} 20. Rxf5 {[%clk 0:02:14.5]} 20... g4
{[%clk 0:01:44.2]} 21. Rg5 {[%clk 0:02:09.5]} 21... Kf7 {[%clk 0:01:34.8]} 22.
Rf1 {[%clk 0:01:36.7]} 22... gxh3 {[%clk 0:01:32.2]} 23. gxh3 {[%clk 0:01:37.6]}
23... Rxh3 {[%clk 0:01:18.7]} 24. Nd5 {[%clk 0:01:37.7]} 24... c6 {[%clk
0:01:07.1]} 25. Nb6 {[%clk 0:01:34.1]} 25... Rh2+ {[%clk 0:00:51.4]} 26. Kc3
{[%clk 0:01:31.5]} 26... R8h5 {[%clk 0:00:50]} 27. Rgg1 {[%clk 0:01:25.8]} 27...
Rh7 {[%clk 0:00:49.4]} 28. Nc4 {[%clk 0:01:23]} 28... Ke6 {[%clk 0:00:49]} 29.
b4 {[%clk 0:01:20.6]} 29... d5 {[%clk 0:00:47.9]} 30. Na5 {[%clk 0:01:18.8]}
30... b6 {[%clk 0:00:35]} 31. Nxc6 {[%clk 0:01:18.2]} 31... dxe4 {[%clk
0:00:35.7]} 32. d4 {[%clk 0:01:15.7]} 32... Nd5+ {[%clk 0:00:31.9]} 33. Kb3
{[%clk 0:01:15.4]} 33... Nxe3 {[%clk 0:00:30.4]} 34. Rg6+ {[%clk 0:01:11.3]}
34... Kd5 {[%clk 0:00:30.5]} 35. Ne7+ {[%clk 0:01:03.5]} 35... Kxd4 {[%clk
0:00:30.9]} 36. Rd6+ {[%clk 0:01:02.1]} 36... Nd5 {[%clk 0:00:31.2]} 37. Nf5#
{[%clk 0:01:00.7]} 1-0

[Event "*** Titled Tuesday Blitz"]
[Site "Chess.com"]
[Date "2020.05.12"]
[Round "8"]
[White "IriBu"]
[Black "ChelsieMonica"]
[Result "1-0"]
[WhiteElo "2546"]
[BlackElo "2355"]
[TimeControl "180+1"]
[EndTime "11:31:43 PDT"]
[Termination "IriBu won by checkmate"]

1. e4 {[%clk 0:03:00.9]} 1... e5 {[%clk 0:02:59.5]} 2. Nf3 {[%clk 0:03:00.6]}
2... Nc6 {[%clk 0:02:59.5]} 3. Bb5 {[%clk 0:02:59.7]} 3... a6 {[%clk 0:02:58.6]}
4. Ba4 {[%clk 0:02:59]} 4... Nf6 {[%clk 0:02:58.9]} 5. d3 {[%clk 0:02:58.2]}
5... b5 {[%clk 0:02:56.7]} 6. Bb3 {[%clk 0:02:57.6]} 6... Be7 {[%clk 0:02:57.3]}
7. O-O {[%clk 0:02:57]} 7... O-O {[%clk 0:02:57.3]} 8. Re1 {[%clk 0:02:56.3]}
8... d6 {[%clk 0:02:56.6]} 9. c3 {[%clk 0:02:55.7]} 9... Bg4 {[%clk 0:02:56.3]}
10. Nbd2 {[%clk 0:02:54.6]} 10... d5 {[%clk 0:02:39.4]} 11. h3 {[%clk
0:02:50.4]} 11... Bh5 {[%clk 0:02:39]} 12. exd5 {[%clk 0:02:48.9]} 12... Nxd5
{[%clk 0:02:38.7]} 13. Ne4 {[%clk 0:02:45.6]} 13... Nb6 {[%clk 0:02:12.1]} 14.
Ng3 {[%clk 0:02:36.4]} 14... Bg6 {[%clk 0:02:11.1]} 15. Nxe5 {[%clk 0:02:36.2]}
15... Nxe5 {[%clk 0:02:06.9]} 16. Rxe5 {[%clk 0:02:37.1]} 16... Bf6 {[%clk
0:01:53.4]} 17. Re3 {[%clk 0:02:34.9]} 17... c5 {[%clk 0:01:44.2]} 18. Ne4
{[%clk 0:02:22.8]} 18... Be7 {[%clk 0:01:42.3]} 19. Re1 {[%clk 0:02:16]} 19...
Kh8 {[%clk 0:01:38.5]} 20. Bf4 {[%clk 0:02:09.2]} 20... Ra7 {[%clk 0:01:25.1]}
21. Qf3 {[%clk 0:02:04.3]} 21... Rd7 {[%clk 0:01:24.5]} 22. Rad1 {[%clk
0:02:03.1]} 22... f5 {[%clk 0:01:10.4]} 23. Ng3 {[%clk 0:01:59.6]} 23... Bh4
{[%clk 0:01:04.9]} 24. Re6 {[%clk 0:01:50.2]} 24... Bf7 {[%clk 0:00:49.8]} 25.
Ree1 {[%clk 0:01:49.8]} 25... c4 {[%clk 0:00:44.5]} 26. dxc4 {[%clk 0:01:44.9]}
26... bxc4 {[%clk 0:00:44.9]} 27. Bc2 {[%clk 0:01:41.4]} 27... Bd5 {[%clk
0:00:44.4]} 28. Qh5 {[%clk 0:01:35.7]} 28... Bxg3 {[%clk 0:00:36.5]} 29. fxg3
{[%clk 0:01:32.6]} 29... Bc6 {[%clk 0:00:27.2]} 30. Be5 {[%clk 0:01:26.5]} 30...
Rxd1 {[%clk 0:00:25.8]} 31. Qxd1 {[%clk 0:01:20.3]} 31... Nd5 {[%clk 0:00:21.4]}
32. Qd4 {[%clk 0:01:19.1]} 32... Qd7 {[%clk 0:00:20.1]} 33. Qxc4 {[%clk
0:01:16.8]} 33... Qa7+ {[%clk 0:00:19.4]} 34. Qd4 {[%clk 0:01:15.8]} 34... Qb7
{[%clk 0:00:19]} 35. Qc5 {[%clk 0:01:14.6]} 35... h6 {[%clk 0:00:17.2]} 36.
Qxf8+ {[%clk 0:01:13.3]} 36... Kh7 {[%clk 0:00:16.4]} 37. Bxf5+ {[%clk
0:01:14.2]} 37... g6 {[%clk 0:00:16]} 38. Qh8# {[%clk 0:01:14.6]} 1-0

[Event "*** Titled Tuesday Blitz"]
[Site "Chess.com"]
[Date "2020.05.12"]
[Round "8"]
[White "zmarian"]
[Black "mfwagnerpeixoto"]
[Result "1/2-1/2"]
[WhiteElo "2143"]
[BlackElo "2232"]
[TimeControl "180+1"]
[EndTime "11:31:46 PDT"]
[Termination "Game drawn by repetition"]

1. g3 {[%clk 0:03:00.9]} 1... Nf6 {[%clk 0:02:58.5]} 2. Bg2 {[%clk 0:03:00.2]}
2... d5 {[%clk 0:02:59]} 3. Nf3 {[%clk 0:02:58.7]} 3... c6 {[%clk 0:02:59.5]} 4.
O-O {[%clk 0:02:57.9]} 4... Bg4 {[%clk 0:02:59.8]} 5. d4 {[%clk 0:02:55.8]} 5...
Bxf3 {[%clk 0:02:58.3]} 6. Bxf3 {[%clk 0:02:54.6]} 6... Nbd7 {[%clk 0:02:57.7]}
7. c4 {[%clk 0:02:49.1]} 7... dxc4 {[%clk 0:02:53.1]} 8. Qc2 {[%clk 0:02:44]}
8... Nb6 {[%clk 0:02:50.3]} 9. Rd1 {[%clk 0:02:37.6]} 9... e6 {[%clk 0:02:37.2]}
10. Nd2 {[%clk 0:02:21.6]} 10... Be7 {[%clk 0:02:00.9]} 11. Nxc4 {[%clk
0:02:19.6]} 11... Nxc4 {[%clk 0:01:58]} 12. Qxc4 {[%clk 0:02:18.7]} 12... O-O
{[%clk 0:01:58.2]} 13. e4 {[%clk 0:02:17.2]} 13... Qb6 {[%clk 0:01:49.2]} 14.
Be3 {[%clk 0:02:12.2]} 14... Qb4 {[%clk 0:01:37.1]} 15. Qc2 {[%clk 0:02:06.9]}
15... Rfd8 {[%clk 0:01:25]} 16. a3 {[%clk 0:02:05.9]} 16... Qa5 {[%clk
0:01:24.8]} 17. b4 {[%clk 0:02:04.9]} 17... Qc7 {[%clk 0:01:18.8]} 18. d5 {[%clk
0:01:48.3]} 18... exd5 {[%clk 0:01:14.1]} 19. exd5 {[%clk 0:01:48.2]} 19... Rac8
{[%clk 0:01:00.2]} 20. dxc6 {[%clk 0:01:47.2]} 20... Rxd1+ {[%clk 0:00:57]} 21.
Rxd1 {[%clk 0:01:44.6]} 21... bxc6 {[%clk 0:00:57.5]} 22. Rc1 {[%clk 0:01:41.5]}
22... a5 {[%clk 0:00:47.4]} 23. Qxc6 {[%clk 0:01:27]} 23... Qxc6 {[%clk
0:00:46.5]} 24. Rxc6 {[%clk 0:01:26.2]} 24... Rxc6 {[%clk 0:00:46.3]} 25. Bxc6
{[%clk 0:01:25.7]} 25... axb4 {[%clk 0:00:46.6]} 26. axb4 {[%clk 0:01:25.4]}
26... Bxb4 {[%clk 0:00:46.3]} 27. Bg5 {[%clk 0:01:22.1]} 27... Be7 {[%clk
0:00:44.2]} 28. Bxf6 {[%clk 0:01:21.2]} 28... Bxf6 {[%clk 0:00:43.9]} 29. Kg2
{[%clk 0:01:21.5]} 29... Kf8 {[%clk 0:00:42.5]} 30. Kf3 {[%clk 0:01:21.7]} 30...
Ke7 {[%clk 0:00:42.2]} 31. Ke4 {[%clk 0:01:21.9]} 31... g6 {[%clk 0:00:42.1]}
32. Bd5 {[%clk 0:01:21.8]} 32... Bb2 {[%clk 0:00:40.8]} 33. g4 {[%clk
0:01:21.5]} 33... Ba3 {[%clk 0:00:39.7]} 34. f3 {[%clk 0:01:21.4]} 34... Bd6
{[%clk 0:00:37.6]} 35. h3 {[%clk 0:01:20.8]} 35... h6 {[%clk 0:00:36.2]} 36. f4
{[%clk 0:01:21]} 36... Kf6 {[%clk 0:00:32.6]} 37. f5 {[%clk 0:01:20.3]} 37...
gxf5+ {[%clk 0:00:31.1]} 38. gxf5 {[%clk 0:01:20]} 38... Bc7 {[%clk 0:00:31.5]}
39. Bc4 {[%clk 0:01:19.4]} 39... Bd6 {[%clk 0:00:31.4]} 40. Bb3 {[%clk 0:01:19]}
40... Bc7 {[%clk 0:00:31.7]} 41. Bc4 {[%clk 0:01:18.6]} 41... Bd6 {[%clk
0:00:31.7]} 42. Bb3 {[%clk 0:01:17.4]} 42... Bb8 {[%clk 0:00:32.2]} 43. Bc4
{[%clk 0:01:17.2]} 43... Bc7 {[%clk 0:00:32.7]} 44. Bd5 {[%clk 0:01:17.2]} 44...
Bb8 {[%clk 0:00:32.6]} 45. Bc4 {[%clk 0:01:17.1]} 45... Bc7 {[%clk 0:00:32.9]}
46. Bd5 {[%clk 0:01:17]} 46... Bb8 {[%clk 0:00:32.8]} 47. Bc4 {[%clk 0:01:17]}
1/2-1/2

[Event "*** Titled Tuesday Blitz"]
[Site "Chess.com"]
[Date "2020.05.12"]
[Round "8"]
[White "yamalchess"]
[Black "CakeinSpace2002"]
[Result "0-1"]
[WhiteElo "2491"]
[BlackElo "2262"]
[TimeControl "180+1"]
[EndTime "11:31:49 PDT"]
[Termination "CakeinSpace2002 won by resignation"]

1. d4 {[%clk 0:03:00.9]} 1... Nf6 {[%clk 0:02:52.8]} 2. c4 {[%clk 0:03:00.6]}
2... c5 {[%clk 0:02:52.6]} 3. d5 {[%clk 0:02:59.6]} 3... b5 {[%clk 0:02:52.8]}
4. cxb5 {[%clk 0:02:59.8]} 4... a6 {[%clk 0:02:53.2]} 5. Nc3 {[%clk 0:03:00.2]}
5... axb5 {[%clk 0:02:51.5]} 6. e4 {[%clk 0:03:00.6]} 6... b4 {[%clk 0:02:52.1]}
7. Nb5 {[%clk 0:03:00.2]} 7... d6 {[%clk 0:02:49.3]} 8. Bf4 {[%clk 0:02:59.8]}
8... g5 {[%clk 0:02:49.1]} 9. Be3 {[%clk 0:02:59.7]} 9... Bg7 {[%clk 0:02:45.7]}
10. Bd3 {[%clk 0:02:54.2]} 10... O-O {[%clk 0:02:25.3]} 11. Bxg5 {[%clk
0:02:51.1]} 11... Ba6 {[%clk 0:02:22.5]} 12. Ne2 {[%clk 0:02:45.1]} 12... Bxb5
{[%clk 0:02:17.2]} 13. Bxb5 {[%clk 0:02:42.2]} 13... Nxe4 {[%clk 0:02:17]} 14.
Bc1 {[%clk 0:02:36.4]} 14... Qa5 {[%clk 0:02:12.5]} 15. Bd3 {[%clk 0:02:21.3]}
15... b3+ {[%clk 0:02:05.4]} 16. Kf1 {[%clk 0:02:21.2]} 16... Qxa2 {[%clk
0:01:55.6]} 17. Rb1 {[%clk 0:02:20.4]} 17... Nf6 {[%clk 0:01:47.9]} 18. Ng3
{[%clk 0:02:17.6]} 18... Nbd7 {[%clk 0:01:42.2]} 19. Nf5 {[%clk 0:02:16.6]}
19... c4 {[%clk 0:01:42.2]} 20. Nxe7+ {[%clk 0:02:07.3]} 20... Kh8 {[%clk
0:01:41.5]} 21. Bf5 {[%clk 0:02:06.1]} 21... Ne5 {[%clk 0:01:18]} 22. Bg5 {[%clk
0:02:02.3]} 22... Ng6 {[%clk 0:01:05.3]} 23. Qf3 {[%clk 0:01:55.3]} 23... Nxe7
{[%clk 0:01:01.3]} 24. g4 {[%clk 0:01:45.4]} 24... Nxf5 {[%clk 0:00:56.5]} 25.
Qxf5 {[%clk 0:01:45.3]} 25... Nxg4 {[%clk 0:00:55.4]} 26. Rg1 {[%clk 0:01:36.3]}
26... Ne5 {[%clk 0:00:50.9]} 27. Rg3 {[%clk 0:01:10.7]} 27... Ng6 {[%clk
0:00:48.9]} 28. Kg2 {[%clk 0:01:06.5]} 28... Rae8 {[%clk 0:00:45.2]} 29. Bf6
{[%clk 0:01:00.9]} 29... Re5 {[%clk 0:00:40.5]} 30. Bxe5 {[%clk 0:00:59]} 30...
Bxe5 {[%clk 0:00:41.4]} 31. Rf3 {[%clk 0:00:56.4]} 31... Nh4+ {[%clk 0:00:39.6]}
0-1

[Event "*** Titled Tuesday Blitz"]
[Site "Chess.com"]
[Date "2020.05.12"]
[Round "8"]
[White "MacDaddyMac"]
[Black "Rodchenkov_Vitalij"]
[Result "0-1"]
[WhiteElo "2266"]
[BlackElo "2426"]
[TimeControl "180+1"]
[EndTime "11:31:49 PDT"]
[Termination "Rodchenkov_Vitalij won by resignation"]

1. e4 {[%clk 0:03:00.9]} 1... e6 {[%clk 0:02:59.7]} 2. d4 {[%clk 0:03:00.6]}
2... d5 {[%clk 0:02:59.9]} 3. Nc3 {[%clk 0:03:00.9]} 3... Nf6 {[%clk 0:02:58.5]}
4. Bg5 {[%clk 0:03:00.3]} 4... dxe4 {[%clk 0:02:54.7]} 5. Nxe4 {[%clk
0:02:59.6]} 5... Be7 {[%clk 0:02:54.6]} 6. Nxf6+ {[%clk 0:02:52.8]} 6... Bxf6
{[%clk 0:02:53.9]} 7. Bxf6 {[%clk 0:02:52.6]} 7... Qxf6 {[%clk 0:02:53.5]} 8.
Nf3 {[%clk 0:02:52.7]} 8... c5 {[%clk 0:02:52.2]} 9. Bb5+ {[%clk 0:02:42.2]}
9... Bd7 {[%clk 0:02:47.3]} 10. Bxd7+ {[%clk 0:02:38]} 10... Nxd7 {[%clk
0:02:47.3]} 11. O-O {[%clk 0:02:36.9]} 11... O-O {[%clk 0:02:46.5]} 12. c3
{[%clk 0:02:35.8]} 12... Rfd8 {[%clk 0:02:43.3]} 13. Qa4 {[%clk 0:02:33]} 13...
cxd4 {[%clk 0:02:41.2]} 14. Qxd4 {[%clk 0:02:31]} 14... Qxd4 {[%clk 0:02:39.1]}
15. Nxd4 {[%clk 0:02:31.9]} 15... Nf6 {[%clk 0:02:36.3]} 16. Rad1 {[%clk
0:02:31.7]} 16... Rac8 {[%clk 0:02:34.4]} 17. f3 {[%clk 0:02:30.4]} 17... Nd5
{[%clk 0:02:32.8]} 18. Kf2 {[%clk 0:02:30]} 18... a6 {[%clk 0:02:26.1]} 19. Rfe1
{[%clk 0:02:22.2]} 19... b5 {[%clk 0:02:21.9]} 20. a3 {[%clk 0:02:18.7]} 20...
g6 {[%clk 0:02:17.9]} 21. Nc2 {[%clk 0:02:17.4]} 21... a5 {[%clk 0:02:08.6]} 22.
Ne3 {[%clk 0:02:17.2]} 22... Nf4 {[%clk 0:02:05.7]} 23. Rxd8+ {[%clk 0:01:52.9]}
23... Rxd8 {[%clk 0:02:05.7]} 24. Kg3 {[%clk 0:01:53.2]} 24... g5 {[%clk
0:01:54.8]} 25. Rd1 {[%clk 0:01:43.8]} 25... Rc8 {[%clk 0:01:49.8]} 26. h4
{[%clk 0:01:40.1]} 26... h6 {[%clk 0:01:48.1]} 27. hxg5 {[%clk 0:01:39.7]} 27...
hxg5 {[%clk 0:01:47.7]} 28. Kg4 {[%clk 0:01:36.1]} 28... Rc5 {[%clk 0:01:47.7]}
29. g3 {[%clk 0:01:27.1]} 29... Ng6 {[%clk 0:01:43]} 30. f4 {[%clk 0:01:02.9]}
30... gxf4 {[%clk 0:01:39.4]} 31. gxf4 {[%clk 0:01:03.8]} 31... Kg7 {[%clk
0:01:38.1]} 32. f5 {[%clk 0:01:01.5]} 32... Ne5+ {[%clk 0:01:36.5]} 33. Kf4
{[%clk 0:01:01.2]} 33... Kf6 {[%clk 0:01:27.3]} 34. fxe6 {[%clk 0:00:59.2]}
34... fxe6 {[%clk 0:01:27.6]} 35. Ke4 {[%clk 0:00:54.4]} 35... Ng6 {[%clk
0:01:13.3]} 36. Rf1+ {[%clk 0:00:50.1]} 36... Ke7 {[%clk 0:01:11.8]} 37. Kd4
{[%clk 0:00:45.2]} 37... Rh5 {[%clk 0:01:10]} 38. Rg1 {[%clk 0:00:38.6]} 38...
Ne5 {[%clk 0:01:07.4]} 39. b4 {[%clk 0:00:28]} 39... Nf3+ {[%clk 0:01:06.6]} 0-1

[Event "*** Titled Tuesday Blitz"]
[Site "Chess.com"]
[Date "2020.05.12"]
[Round "8"]
[White "AwesomeMango"]
[Black "Michaelson_11"]
[Result "1-0"]
[WhiteElo "2239"]
[BlackElo "2009"]
[TimeControl "180+1"]
[EndTime "11:31:51 PDT"]
[Termination "AwesomeMango won by resignation"]

1. e4 {[%clk 0:03:00.9]} 1... e6 {[%clk 0:02:57.7]} 2. d4 {[%clk 0:03:00.5]}
2... d5 {[%clk 0:02:56.3]} 3. Nc3 {[%clk 0:03:00.9]} 3... Bb4 {[%clk 0:02:55.4]}
4. e5 {[%clk 0:03:00.9]} 4... c5 {[%clk 0:02:55.8]} 5. Bd2 {[%clk 0:03:00.9]}
5... cxd4 {[%clk 0:02:52.5]} 6. Nb5 {[%clk 0:03:00.7]} 6... Nc6 {[%clk
0:02:47.9]} 7. Bxb4 {[%clk 0:02:44.2]} 7... Nxb4 {[%clk 0:02:46.2]} 8. a3 {[%clk
0:02:39.9]} 8... Nc6 {[%clk 0:02:44.5]} 9. Nd6+ {[%clk 0:02:38]} 9... Kf8 {[%clk
0:02:41.9]} 10. f4 {[%clk 0:02:32.9]} 10... f6 {[%clk 0:02:04.5]} 11. Nf3 {[%clk
0:02:28.7]} 11... Nh6 {[%clk 0:01:59.3]} 12. Bd3 {[%clk 0:02:20.7]} 12... Nf7
{[%clk 0:01:40.1]} 13. Nxf7 {[%clk 0:02:14.1]} 13... Kxf7 {[%clk 0:01:41]} 14.
O-O {[%clk 0:02:14.1]} 14... h6 {[%clk 0:01:20.9]} 15. g4 {[%clk 0:02:07.3]}
15... Rf8 {[%clk 0:01:10.6]} 16. Qd2 {[%clk 0:02:00]} 16... Kg8 {[%clk
0:01:06.3]} 17. Rae1 {[%clk 0:01:53.4]} 17... Qe7 {[%clk 0:00:47.4]} 18. Nh4
{[%clk 0:01:46.9]} 18... Qf7 {[%clk 0:00:41.6]} 19. Bg6 {[%clk 0:01:38.6]} 19...
Qc7 {[%clk 0:00:39.9]} 20. g5 {[%clk 0:01:27.4]} 20... Bd7 {[%clk 0:00:19.2]}
21. gxf6 {[%clk 0:01:21.6]} 21... Be8 {[%clk 0:00:14]} 22. Bxe8 {[%clk
0:01:09.1]} 22... Raxe8 {[%clk 0:00:12.7]} 23. Kh1 {[%clk 0:01:09.2]} 23... Qf7
{[%clk 0:00:07.6]} 24. Rg1 {[%clk 0:01:09]} 24... Kh8 {[%clk 0:00:03.7]} 25.
fxg7+ {[%clk 0:01:05.4]} 25... Kg8 {[%clk 0:00:02.7]} 26. gxf8=Q+ {[%clk
0:01:04.4]} 26... Kxf8 {[%clk 0:00:03.6]} 27. Ng6+ {[%clk 0:01:04.2]} 1-0